fUSD/lending_fUSD_20251019
["ID","MTS","AMOUNT","RATE_DAILY","PERIOD"]
[391812001,1760865043168,-474.98,0.00039578,2]
[391812002,1760865043178,-474.98,0.00039578,2]
[391812003,1760865043187,-150.0,0.00039578,2]
[391812004,1760865043196,-150.0,0.00039578,2]
[391812005,1760865043206,-150.0,0.00039578,2]
[391812006,1760865043216,-150.0,0.00039578,2]
[391812007,1760865043226,-150.0,0.00039578,2]
[391812008,1760865043236,-474.98,0.00039578,2]
[391812009,1760865043246,-150.0,0.00039578,2]
[391812010,1760865043257,-150.0,0.00039578,2]
[391812011,1760865043267,-474.98,0.00039578,2]
[391812012,1760865043277,-151.84,0.00039578,2]
[391812013,1760865043287,-150.0,0.00039578,2]
[391812014,1760865043298,-150.0,0.00039578,2]
[391812015,1760865043307,-695.55,0.00039578,2]
[391812016,1760865043317,-474.98,0.00039578,2]
[391812017,1760865043327,-474.98,0.00039578,2]
[391812018,1760865043338,-150.0,0.00039578,2]
[391812019,1760865043348,-695.55,0.00039578,2]
[391812020,1760865043358,-474.98,0.00039578,2]
[391812021,1760865043547,-474.98,0.00039578,2]
[391812022,1760865043557,-695.55,0.00039578,2]
[391812023,1760865043567,-474.98,0.00039578,2]
[391812024,1760865043578,-474.98,0.00039578,2]
[391812025,1760865043587,-695.55,0.00039578,2]
[391812026,1760865043598,-474.98,0.00039578,2]
[391812027,1760865043607,-474.98,0.00039578,2]
[391812028,1760865043617,-695.55,0.00039578,2]
[391812029,1760865043626,-474.98,0.00039578,2]
[391812030,1760865043635,-474.98,0.00039578,2]
[391812031,1760865043644,-474.98,0.00039578,2]
[391812032,1760865043653,-474.98,0.00039578,2]
[391812033,1760865043662,-695.55,0.00039578,2]
[391812034,1760865043672,-695.55,0.00039578,2]
[391812035,1760865043681,-474.98,0.00039578,2]
[391812036,1760865043691,-474.98,0.00039578,2]
[391812037,1760865043700,-695.55,0.00039578,2]
[391812038,1760865043714,-695.55,0.00039578,2]
[391812039,1760865043723,-695.55,0.00039578,2]
[391812040,1760865043733,-695.55,0.00039578,2]
[391812041,1760865043742,-695.55,0.00039578,2]
[391812042,1760865043751,-160.66,0.00039578,2]
[391812043,1760865043761,-695.55,0.00039578,2]
[391812044,1760865043770,-248.52,0.00039578,2]
[391812045,1760865043780,-279.61063255,0.00039578,2]
[391812046,1760865043789,-151.0,0.00039578,2]
[391812047,1760865043799,-230.04,0.00039592,120]
[391812048,1760865043809,-1488.0,0.00039966,30]
[391812049,1760865043822,-1488.0,0.00040378,30]
[391812050,1760865043831,-639.4249,0.00040558,2]
[391812051,1760865043841,-778.87208466,0.00040658,120]
[391812052,1760865043850,-9922.45,0.00040669,2]
[391812053,1760865043859,-1488.0,0.0004079,30]
[391812054,1760865043869,-864.33365886,0.0004098,120]
[391812055,1760865043878,-520.18,0.0004099,120]
[391812056,1760865043888,-174.0,0.00041,90]
[391812057,1760865043899,-150.17265454,0.00041096,10]
[391812058,1760865043909,-309.53821247,0.000411,120]
[391812059,1760865043920,-250.0,0.000411,2]
[391812060,1760865043930,-1051.0,0.000411,2]
[391812061,1760865043939,-578.70663919,0.000411,2]
[391812062,1760865043949,-1488.0,0.00041202,30]
[391812063,1760865043959,-520.56110429,0.00041202,30]
[391812064,1760865043970,-1488.0,0.00041614,30]
[391812065,1760865043980,-1000.0,0.00041908,2]
[391812066,1760865043990,-5800.0,0.00041961,14]
[391812067,1760865044000,-5800.0,0.00041969,14]
[391812068,1760865044010,-3076.0,0.00041978,7]
[391812069,1760865044019,-2259.80605604,0.00041978,14]
[391812070,1760865044112,-3540.19394396,0.00041978,14]
[391812071,1760865044121,-5800.0,0.00041986,14]
[391812072,1760865044130,-5800.0,0.00041995,14]
[391812073,1760865044141,-5800.0,0.00042003,14]
[391812074,1760865044151,-5800.0,0.00042012,14]
[391812075,1760865044161,-5800.0,0.0004202,14]
[391812076,1760865044171,-1488.0,0.00042026,30]
[391812077,1760865044182,-5800.0,0.00042029,14]
[391812078,1760865044193,-1488.0,0.00042438,30]
[391812079,1760865044204,-200.0,0.00042858,120]
[391812080,1760865044213,-502.33155974,0.00043025,10]
[391812081,1760865044223,-174.0,0.00043151,90]
[391812082,1760865044233,-301.83702576,0.00043256,116]
[391812083,1760865044243,-864.33365886,0.00043439,120]
[391812084,1760865044255,-1053.8687,0.00043503,2]
[391812085,1760865044265,-200.0,0.00043749,2]
[391812086,1760865044275,-200.0,0.00043749,2]
[391812087,1760865044284,-200.0,0.00043749,2]
[391812088,1760865044293,-200.0,0.00043749,2]
[391812089,1760865044302,-200.0,0.00043749,2]
[391812090,1760865044312,-200.0,0.00043749,2]
[391812091,1760865044321,-200.0,0.00043749,2]
[391812092,1760865044331,-200.0,0.00043749,2]
[391812093,1760865044341,-200.0,0.00043749,2]
[391812094,1760865044351,-200.0,0.00043749,2]
[391812095,1760865044360,-200.0,0.00043749,2]
[391812096,1760865044370,-200.0,0.00043749,2]
[391812097,1760865044379,-200.0,0.00043749,2]
[391812098,1760865044389,-200.0,0.00043749,2]
[391812099,1760865044399,-200.0,0.00043749,2]
[391812100,1760865044408,-200.0,0.00043749,2]
[391812101,1760865044418,-200.0,0.00043749,2]
[391812102,1760865044428,-200.0,0.00043749,2]
[391812103,1760865044437,-200.0,0.00043749,2]
[391812104,1760865044447,-200.0,0.00043749,2]
[391812105,1760865044457,-200.0,0.00043749,2]
[391812106,1760865044467,-200.0,0.00043749,2]
[391812107,1760865044477,-200.0,0.00043749,2]
[391812108,1760865044486,-200.0,0.00043749,2]
[391812109,1760865044496,-200.0,0.00043749,2]
[391812110,1760865044505,-200.0,0.00043749,2]
[391812111,1760865044515,-200.0,0.00043749,2]
[391812112,1760865044525,-200.0,0.00043749,2]
[391812113,1760865044535,-200.0,0.00043749,2]
[391812114,1760865044545,-200.0,0.00043749,2]
[391812115,1760865044555,-200.0,0.00043749,2]
[391812116,1760865044569,-200.0,0.00043749,2]
[391812117,1760865044579,-200.0,0.00043749,2]
[391812118,1760865044589,-200.0,0.00043749,2]
[391812119,1760865044599,-200.0,0.00043749,2]
[391812120,1760865044608,-248.0,0.00043749,2]
[391812121,1760865044618,-500.0,0.00043835,2]
[391812122,1760865044628,-1000.0,0.00043836,28]
[391812123,1760865044638,-150.0,0.00044,57]
[391812124,1760865044647,-5000.0,0.00044,120]
[391812125,1760865044657,-5000.0,0.000442,120]
[391812126,1760865044666,-5000.0,0.000444,120]
[391812127,1760865044676,-5000.0,0.000446,120]
[391812128,1760865044685,-520.18,0.00044716,120]
[391812129,1760865044695,-167.85481145,0.0004479,28]
[391812130,1760865044705,-5000.0,0.000448,120]
[391812131,1760865044717,-3046.40200142,0.000448,120]
[391812132,1760865044726,-882.5089233,0.0004488,15]
[391812133,1760865044735,-5000.0,0.0004489,120]
[391812134,1760865044744,-55555.0,0.0004489,60]
[391812135,1760865044753,-1511.24722924,0.0004489,17]
[391812136,1760865044763,-160.66237873,0.0004489,15]
[391812137,1760865044772,-3281.8329,0.0004489,2]
[391812138,1760865044781,-211.49273822,0.000449,120]
[391812139,1760865044791,-161.8418776,0.000449,17]
[391812140,1760865044800,-882.50892321,0.00044938,15]
[391812141,1760865044810,-3791.49000489,0.0004497,3]
[391812142,1760865044819,-500.0,0.00044973,10]
[391812143,1760865044829,-1263.83000163,0.00044977,3]
[391812144,1760865044839,-2527.66000326,0.0004498,3]
[391812145,1760865044848,-22748.9400293,0.0004498,3]
[391812146,1760865044858,-4235.19974476,0.00044987,120]
[391812147,1760865044868,-500.0,0.00044989,120]
[391812148,1760865044877,-500.0,0.00044989,120]
[391812149,1760865044887,-500.0,0.00044989,2]
[391812150,1760865044898,-500.0,0.00044989,2]
[391812151,1760865044908,-500.0,0.00044989,2]
[391812152,1760865044919,-338.27612421,0.00044989,5]
[391812153,1760865044929,-500.30752045,0.00044989,5]
[391812154,1760865044939,-300.0,0.0004499,120]
[391812155,1760865044948,-420.0,0.0004499,120]
[391812156,1760865044957,-150.0,0.0004499,120]
[391812157,1760865044967,-150.0,0.0004499,120]
[391812158,1760865044977,-150.0,0.0004499,120]
[391812159,1760865044987,-107163.658606,0.0004499,3]
[391812160,1760865044996,-205.14193057,0.0004499,7]
[391812161,1760865045006,-151.29,0.0004499,2]
[391812162,1760865045015,-151.29,0.0004499,2]
[391812163,1760865045025,-151.29,0.0004499,2]
[391812164,1760865045035,-469.12601148,0.00044999,120]
[391812165,1760865045044,-500.0,0.00044999,2]
[391812166,1760865045053,-500.0,0.00044999,2]
[391812167,1760865045063,-500.0,0.00044999,2]
[391812168,1760865045072,-500.0,0.00044999,2]
[391812169,1760865045081,-500.0,0.00044999,2]
[391812170,1760865045090,-500.0,0.00044999,2]
[391812171,1760865045099,-500.0,0.00044999,2]
[391812172,1760865045108,-414.5747899,0.00044999,2]
[391812173,1760865045118,-500.0,0.00044999,2]
[391812174,1760865045128,-500.0,0.00044999,2]
[391812175,1760865045138,-500.0,0.00044999,2]
[391812176,1760865045148,-500.0,0.00044999,2]
[391812177,1760865045158,-500.0,0.00044999,2]
[391812178,1760865045167,-500.0,0.00044999,2]
[391812179,1760865045177,-500.0,0.00044999,2]
[391812180,1760865045186,-327.48291875,0.00044999,2]
[391812181,1760865045195,-150.0,0.00044999,120]
[391812182,1760865045204,-1000000.0,0.00045,120]
[391812183,1760865045213,-733349.42644804,0.00045,120]
[391812184,1760865045226,-53264.99999999,0.00045,120]
[391812187,1760865045634,-695.55,0.00038619,2]
[391812188,1760865045643,-474.98,0.00038619,2]
[391812189,1760865045652,-546.93,0.00038756,2]
[391812190,1760865045662,-150.0,0.00038756,2]
[391812191,1760865045671,-176.13,0.00038756,2]
[391812192,1760865045684,-150.0,0.00038756,2]
[391812193,1760865045693,-150.0,0.00038756,2]
[391812194,1760865045703,-413.82,0.00038756,2]
[391812195,1760865045716,-168.31,0.00038756,2]
[391812196,1760865045725,-10500.0,0.0004499,120]
[391812197,1760865045734,-57811.66295073,0.00045,120]
[391812198,1760865045745,-11655.81643716,0.00045,120]
[391812199,1760865045765,-882.50892321,0.00044996,15]
[391812200,1760865045775,-12038.42349249,0.00045,120]
[391812201,1760865045848,-5325.0,0.00045,120]
[391812202,1760865045860,-1250.01937679,0.00045,120]
[391812206,1760865061985,200.0,0.00033082,120]
[391812207,1760865302704,-410.09913291,0.00025651,2]
[391812208,1760865388112,267.98,0.00013699,2]
[391812209,1760865388351,267.98,0.00020187,2]
[391812212,1760865509653,155.601297,0.00033081,120]
[391812213,1760865510059,155.601297,0.00033081,120]
[391812214,1760865510471,155.601297,0.00033081,120]
[391812215,1760865511438,155.601297,0.00033081,120]
[391812216,1760865511898,155.601297,0.00033081,120]
[391812217,1760865511931,153.53801,0.00033081,120]
[391812218,1760865512274,153.53801,0.00033081,120]
[391812219,1760865512308,155.601297,0.00033081,120]
[391812220,1760865512469,150.915125,0.00033081,120]
[391812221,1760865512681,153.53801,0.00033081,120]
[391812222,1760865512712,155.601297,0.00033081,120]
[391812223,1760865512878,150.915125,0.00033081,120]
[391812224,1760865513123,153.53801,0.00033081,120]
[391812225,1760865513156,155.601297,0.00033081,120]
[391812226,1760865513261,-153.53801,0.00022438,2]
[391812227,1760865513282,-96.75199,0.00022685,2]
[391812228,1760865513316,150.915125,0.00033081,120]
[391812229,1760865513545,153.53801,0.00033081,120]
[391812230,1760865513577,155.601297,0.00033081,120]
[391812231,1760865513661,150.915125,0.00033081,120]
[391812232,1760865513915,2201.733122,0.00033081,120]
[391812233,1760865513975,155.601297,0.00033081,120]
[391812234,1760865514013,153.53801,0.00033081,120]
[391812235,1760865514052,150.915125,0.00033081,120]
[391812236,1760865514297,2201.733122,0.00033081,120]
[391812237,1760865514410,155.601297,0.00033081,120]
[391812238,1760865514442,153.53801,0.00033081,120]
[391812239,1760865514472,150.915125,0.00033081,120]
[391812240,1760865514692,2201.733122,0.00033081,120]
[391812241,1760865514807,155.601297,0.00033081,120]
[391812242,1760865514840,153.53801,0.00033081,120]
[391812243,1760865514872,150.915125,0.00033081,120]
[391812244,1760865515087,2201.733122,0.00033081,120]
[391812245,1760865515256,155.601297,0.00033081,120]
[391812246,1760865515288,150.915125,0.00033081,120]
[391812247,1760865515470,2201.733122,0.00033081,120]
[391812248,1760865515716,150.915126,0.00033081,120]
[391812249,1760865515770,150.915125,0.00033081,120]
[391812250,1760865515874,2201.733122,0.00033081,120]
[391812251,1760865516100,150.915126,0.00033081,120]
[391812252,1760865516322,2201.733122,0.00033081,120]
[391812253,1760865516723,2201.733122,0.00033081,120]
[391812254,1760865517124,2201.733122,0.00033081,120]
[391812255,1760865517508,2201.733122,0.00033081,120]
[391812256,1760865517969,2201.733122,0.00033081,120]
[391812257,1760865518413,2201.733122,0.00033081,120]
[391812258,1760865518915,2201.733122,0.00033081,120]
[391812259,1760865519240,2201.733122,0.00033081,120]
[391812260,1760865519633,2201.733122,0.00033081,120]
[391812261,1760865520056,2201.733122,0.00033081,120]
[391812262,1760865520450,2201.733122,0.00033081,120]
[391812263,1760865521455,2201.733122,0.00033081,120]
[391812264,1760865521930,2201.733122,0.00033081,120]
[391812265,1760865522377,2201.733122,0.00033081,120]
[391812266,1760865522805,2201.733122,0.00033081,120]
[391812267,1760865523206,2201.733122,0.00033081,120]
[391812268,1760865523625,2201.733122,0.00033081,120]
[391812269,1760865524066,2201.733122,0.00033081,120]
[391812270,1760865557289,-255.33,0.000329,60]
[391812271,1760865557316,-181.96505491,0.000372,120]
[391812272,1760865557342,-766.01,0.000394,60]
[391812273,1760865557368,-155.601297,0.00039452,120]
[391812274,1760865557394,-153.53801,0.00039452,120]
[391812275,1760865557419,-150.915125,0.00039452,120]
[391812276,1760865557444,-2201.733122,0.00039452,120]
[391812277,1760865557469,-150.915126,0.00039452,120]
[391812278,1760865557497,-500.0,0.00039999,31]
[391812279,1760865557523,-500.0,0.00039999,31]
[391812280,1760865557551,-500.0,0.00039999,31]
[391812281,1760865557577,-500.0,0.00039999,31]
[391812282,1760865557604,-235.50427099,0.00039999,31]
[391812283,1760865557631,-500.0,0.00039999,31]
[391812284,1760865557657,-500.0,0.00039999,31]
[391812285,1760865557684,-500.0,0.00039999,31]
[391812286,1760865557712,-500.0,0.00039999,31]
[391812287,1760865557740,-500.0,0.00039999,31]
[391812288,1760865557771,-500.0,0.00039999,31]
[391812289,1760865557800,-500.0,0.00039999,31]
[391812290,1760865557830,-500.0,0.00039999,31]
[391812291,1760865557859,-500.0,0.00039999,31]
[391812292,1760865557885,-500.0,0.00039999,31]
[391812293,1760865557913,-500.0,0.00039999,31]
[391812294,1760865557942,-500.0,0.00039999,31]
[391812295,1760865557967,-3394.77431912,0.0004,120]
[391812296,1760865557995,-2644.84732927,0.0004098,120]
[391812297,1760865558023,-7955.47116404,0.00042149,120]
[391812298,1760865558068,-2644.84732927,0.00043439,120]
[391812299,1760865558101,-1000.0,0.00043823,120]
[391812300,1760865558128,-5000.0,0.0004489,120]
[391812301,1760865558155,-42024.7313,0.0004489,60]
[391812302,1760865558182,-1000.0,0.000449,120]
[391812303,1760865558208,-150.0,0.0004499,120]
[391812304,1760865558238,-150.0,0.0004499,120]
[391812305,1760865558266,-150.0,0.0004499,120]
[391812306,1760865558295,-10500.0,0.0004499,120]
[391812307,1760865558321,-300.0,0.0004499,120]
[391812308,1760865558347,-420.0,0.0004499,120]
[391812309,1760865558374,-394.92920871,0.00044999,120]
[391812310,1760865558401,-160.20742905,0.00044999,31]
[391812311,1760865558427,-707.88,0.00044999,30]
[391812312,1760865558453,-695.04,0.00044999,30]
[391812313,1760865558479,-715.772,0.00044999,72]
[391812314,1760865558505,-160.44976004,0.00044999,120]
[391812315,1760865558531,-125304.6512948,0.00045,120]
[391812316,1760865558558,-782274.8868598,0.00045,120]
[391812317,1760865567108,-217725.1131402,0.00045,120]
[391812318,1760865567136,-5000.0,0.00045,120]
[391812319,1760865567166,-1531.0,0.00045,120]
[391812320,1760865567193,-10000.0,0.00045,120]
[391812321,1760865567219,-687.24,0.00045,30]
[391812322,1760865567246,-10000.0,0.000451,120]
[391812323,1760865567272,-2125.40482944,0.0004514,120]
[391812324,1760865567298,-5000.0,0.000452,120]
[391812325,1760865567325,-10000.0,0.000452,120]
[391812326,1760865567350,-10000.0,0.00045205,120]
[391812327,1760865567376,-727931.24203036,0.0004525,120]
[391812328,1760865572520,-272068.75796964,0.0004525,120]
[391812329,1760865572547,-10000.0,0.000453,120]
[391812330,1760865572574,-10000.0,0.000454,120]
[391812331,1760865572601,-178.88488593,0.00045403,120]
[391812332,1760865572626,-5000.0,0.0004541,120]
[391812333,1760865572656,-5000.0,0.0004543,120]
[391812334,1760865572683,-311.1,0.00045443,30]
[391812335,1760865572710,-105642.18692844,0.000455,31]
[391812336,1760865572736,-322911.0,0.000455,120]
[391812337,1760865572762,-1000000.0,0.000455,120]
[391812338,1760865572787,-1000000.0,0.000455,120]
[391812339,1760865572812,-1000000.0,0.00045525,120]
[391812340,1760865572837,-1000000.0,0.0004557,120]
[391812341,1760865572865,-151.0,0.0004557,30]
[391812342,1760865572895,-151.0,0.0004557,30]
[391812343,1760865572921,-193.718256,0.0004557,30]
[391812344,1760865572946,-175.56082,0.0004557,120]
[391812345,1760865572972,-151.0,0.0004557,120]
[391812346,1760865573002,-151.0,0.0004557,120]
[391812347,1760865573030,-151.0,0.0004557,120]
[391812348,1760865573221,-243.774605,0.0004557,120]
[391812349,1760865573252,-243.774605,0.0004557,120]
[391812350,1760865573281,-243.774605,0.0004557,120]
[391812351,1760865573307,-243.774605,0.0004557,120]
[391812352,1760865573334,-266788.69271999,0.00045575,120]
[391812353,1760865584604,-150.0,0.0004499,120]
[391812354,1760865584633,-150.0,0.0004499,120]
[391812355,1760865584661,-1000000.0,0.00045,120]
[391812356,1760865584689,-1000000.0,0.00045,120]
[391812357,1760865584719,-151.0,0.0004557,30]
[391812358,1760865584746,-151.0,0.0004557,30]
[391812359,1760865584772,-151.0,0.0004557,30]
[391812360,1760865584801,-733211.30728001,0.00045575,120]
[391812361,1760865584829,-1000000.0,0.000456,120]
[391812362,1760865584855,-151.0,0.000456,120]
[391812363,1760865584883,-151.0,0.000456,120]
[391812364,1760865584911,-151.0,0.000456,120]
[391812365,1760865584939,-243.774605,0.000456,120]
[391812366,1760865584966,-243.774605,0.000456,120]
[391812367,1760865584991,-243.774605,0.000456,120]
[391812368,1760865585021,-243.774605,0.000456,120]
[391812369,1760865585048,-151.0,0.000456,30]
[391812370,1760865585074,-151.0,0.000456,30]
[391812371,1760865585102,-151.0,0.000456,30]
[391812372,1760865585131,-1000000.0,0.00045625,120]
[391812373,1760865585159,-5870.10679383,0.0004565,120]
[391812374,1760865585186,-258284.48750616,0.0004565,120]
[391812375,1760865599037,-1000000.0,0.00045,120]
[391812376,1760865599064,-1000000.0,0.00045,120]
[391812377,1760865599093,-741715.51249384,0.0004565,120]
[391812378,1760865599133,-151.0,0.0004565,120]
[391812379,1760865599162,-242.915094,0.0004565,120]
[391812380,1760865599188,-151.0,0.0004565,120]
[391812381,1760865599214,-243.774605,0.0004565,120]
[391812382,1760865599241,-243.774605,0.0004565,120]
[391812383,1760865599268,-243.774605,0.0004565,120]
[391812384,1760865599294,-243.774605,0.0004565,120]
[391812385,1760865599321,-151.0,0.0004565,30]
[391812386,1760865599348,-151.0,0.0004565,30]
[391812387,1760865599377,-151.0,0.0004565,30]
[391812388,1760865599404,-300.0,0.00045664,120]
[391812389,1760865599431,-502586.24169149,0.00045665,120]
[391812390,1760865599457,-314.25445056,0.00045665,120]
[391812391,1760865599484,-387.94571421,0.00045665,120]
[391812392,1760865599514,-686085.95373258,0.00045665,120]
[391812393,1760865599546,-1000.0,0.00045666,60]
[391812394,1760865599572,-216.90346363,0.00045666,120]
[391812395,1760865599599,-17032.64024798,0.00045667,120]
[391812396,1760865599626,-375.1433527,0.00045669,120]
[391812397,1760865599653,-171.41144641,0.00045669,120]
[391812398,1760865599680,-1151.49976605,0.0004567,120]
[391812399,1760865599707,-1000000.0,0.00045675,120]
[391812400,1760865599732,-2579.63223095,0.00045679,120]
[391812401,1760865599758,-4856.23821355,0.00045679,120]
[391812402,1760865599784,-1472.87247749,0.00045683,120]
[391812403,1760865599810,-8192.93589341,0.00045684,120]
[391812404,1760865599838,-1845.74722957,0.00045684,120]
[391812405,1760865599865,-994.60025521,0.00045686,120]
[391812406,1760865599891,-1845.74722957,0.00045686,120]
[391812407,1760865599917,-2783.29590349,0.00045687,120]
[391812408,1760865599943,-193.45196067,0.00045691,120]
[391812409,1760865599973,-2573.64235203,0.00045693,120]
[391812410,1760865600001,-265.68506445,0.00045693,120]
[391812411,1760865600032,-3621.20913064,0.00045693,120]
[391812412,1760865600063,-1396.98938482,0.00045694,120]
[391812413,1760865600094,-5118.80389122,0.00045699,120]
[391812414,1760865600123,-8948.62890948,0.000457,120]
[391812415,1760865602788,-991051.37109052,0.000457,120]
[391812416,1760865602816,-151.0,0.000457,120]
[391812417,1760865602843,-151.0,0.000457,120]
[391812418,1760865602872,-243.774605,0.000457,120]
[391812419,1760865602899,-243.774605,0.000457,120]
[391812420,1760865602927,-243.774605,0.000457,120]
[391812421,1760865602952,-243.774605,0.000457,120]
[391812422,1760865602979,-151.0,0.000457,30]
[391812423,1760865603012,-151.0,0.000457,30]
[391812424,1760865603047,-3090.80035357,0.00045701,120]
[391812425,1760865603248,-1151.49976605,0.00045702,120]
[391812426,1760865603279,-4856.23821355,0.00045703,120]
[391812427,1760865603309,-4171.65565591,0.00045704,120]
[391812428,1760865603337,-4171.65565591,0.00045706,120]
[391812429,1760865603364,-216.90346363,0.00045709,120]
[391812430,1760865603396,-265.68506445,0.00045712,120]
[391812431,1760865603424,-1845.74722957,0.00045712,120]
[391812432,1760865603452,-1151.49976605,0.00045713,120]
[391812433,1760865603478,-216.90346363,0.00045714,120]
[391812434,1760865603505,-2302.99953212,0.00045715,120]
[391812435,1760865603531,-4889.55419773,0.00045716,120]
[391812436,1760865603557,-1845.74722957,0.00045716,120]
[391812437,1760865603585,-7676.66510704,0.00045717,120]
[391812438,1760865603612,-2579.63223095,0.00045718,120]
[391812439,1760865603642,-1151.49976605,0.00045718,120]
[391812440,1760865603668,-5118.80389122,0.00045723,120]
[391812441,1760865603695,-267.95953765,0.00045724,120]
[391812442,1760865603721,-2783.29590349,0.00045725,120]
[391812443,1760865603748,-93862.81301839,0.00045725,120]
[391812444,1760865603778,-4889.55419773,0.00045727,120]
[391812445,1760865603804,-93862.81301839,0.00045728,120]
[391812446,1760865603830,-5118.80389122,0.00045733,120]
[391812447,1760865603858,-8192.93589341,0.00045736,120]
[391812448,1760865603884,-2573.64235203,0.00045737,120]
[391812449,1760865603911,-4889.55419773,0.00045742,120]
[391812450,1760865603938,-2783.29590349,0.00045743,120]
[391812451,1760865603965,-2302.99953212,0.00045743,120]
[391812452,1760865603991,-3621.20913064,0.00045746,120]
[391812453,1760865604020,-17032.64024798,0.00045748,120]
[391812454,1760865604046,-5118.80389122,0.00045749,120]
[391812455,1760865604075,-1000000.0,0.0004575,120]
[391812456,1760865604108,-431.02107938,0.0004575,120]
[391812457,1760865604148,-431.02107938,0.00045756,120]
[391812458,1760865604178,-375.1433527,0.00045758,120]
[391812459,1760865604207,-4889.55419773,0.00045761,120]
[391812460,1760865604236,-8239.3610045,0.00045763,120]
[391812461,1760865604266,-431.02107938,0.00045764,120]
[391812462,1760865604297,-46129.40040634,0.00045765,120]
[391812463,1760865604326,-4856.23821355,0.00045766,120]
[391812464,1760865604356,-3090.80035357,0.00045766,120]
[391812465,1760865604383,-17032.64024798,0.00045767,120]
[391812466,1760865604412,-375.1433527,0.00045768,120]
[391812467,1760865604440,-216.90346363,0.00045769,120]
[391812468,1760865604469,-375.1433527,0.0004577,120]
[391812469,1760865604498,-2302.99953212,0.00045772,120]
[391812470,1760865604528,-1472.87247749,0.00045782,120]
[391812471,1760865604557,-1151.49976605,0.00045783,120]
[391812472,1760865604593,-267.95953765,0.00045783,120]
[391812473,1760865604624,-3090.80035357,0.00045784,120]
[391812474,1760865604655,-17181.91968156,0.00045785,120]
[391812475,1760865604683,-193.45196067,0.00045788,120]
[391812476,1760865604713,-4171.65565591,0.00045788,120]
[391812477,1760865604741,-2579.63223095,0.00045788,120]
[391812478,1760865604771,-8239.3610045,0.00045789,120]
[391812479,1760865604802,-375.1433527,0.00045791,120]
[391812480,1760865604835,-1845.74722957,0.00045792,120]
[391812481,1760865604868,-17181.91968156,0.00045796,120]
[391812482,1760865604898,-2579.63223095,0.00045799,120]
[391812483,1760865604930,-1000000.0,0.000458,120]
[391812484,1760865604961,-151.0,0.000458,120]
[391812485,1760865604992,-243.774605,0.000458,120]
[391812486,1760865605023,-243.774605,0.000458,120]
[391812487,1760865605052,-243.774605,0.000458,120]
[391812488,1760865605081,-243.774609,0.000458,120]
[391812489,1760865605111,-151.0,0.000458,30]
[391812490,1760865605141,-151.0,0.000458,30]
[391812491,1760865605172,-265.68506445,0.00045802,120]
[391812492,1760865605201,-267.95953765,0.00045803,120]
[391812493,1760865605230,-4856.23821355,0.00045805,120]
[391812494,1760865605258,-171.41144641,0.00045806,120]
[391812495,1760865605288,-2573.64235203,0.00045807,120]
[391812496,1760865605322,-46129.40040634,0.00045807,120]
[391812497,1760865605351,-8192.93589341,0.00045809,120]
[391812498,1760865605389,-265.68506445,0.00045811,120]
[391812499,1760865605431,-7676.66510704,0.00045812,120]
[391812500,1760865605469,-265.68506445,0.00045813,120]
[391812501,1760865605502,-8192.93589341,0.00045814,120]
[391812502,1760865605537,-2302.99953212,0.00045814,120]
[391812503,1760865605572,-431.02107938,0.00045818,120]
[391812504,1760865605605,-193.45196067,0.00045819,120]
[391812505,1760865605639,-8239.3610045,0.0004582,120]
[391812506,1760865605676,-8192.93589341,0.00045821,120]
[391812507,1760865605710,-4889.55419773,0.00045821,120]